[Event "Schack-SM 2024: Mastarklassen"]
[Site "Fortnox Arena, Hejaregatan 5, Vaxjo, Sweden"]
[Date "2024.06.30"]
[Round "2.2"]
[White "Mardell, Jimmy"]
[Black "Collett, Peter"]
[Result "1/2-1/2"]
[TimeControl "90 minutes for 40 moves + 30 minutes for the rest of the game + 30 seconds per move from move one."]
[BlackTitle "CM"]
[WhiteElo "2186"]
[BlackElo "2116"]

1. d4 {[%clk 01:30:57]} {[%emt 00:00:03]} Nf6 {[%clk 01:30:50]} {[%emt
00:00:09]} 2. c4 {[%clk 01:31:16]} {[%emt 00:00:12]} e6 {[%clk 01:31:11]}
{[%emt 00:00:09]} 3. Nc3 {[%clk 01:31:27]} {[%emt 00:00:20]} Bb4 {[%clk
01:31:27]} {[%emt 00:00:13]} 4. e3 {[%clk 01:31:43]} {[%emt 00:00:14]} O-O
{[%clk 01:31:37]} {[%emt 00:00:20]} 5. Nge2 {[%clk 01:31:48]} {[%emt 00:00:25]}
d5 {[%clk 01:31:38]} {[%emt 00:00:30]} 6. a3 {[%clk 01:32:06]} {[%emt
00:00:12]} Bd6 {[%clk 01:31:53]} {[%emt 00:00:15]} 7. Ng3 {[%clk 01:30:11]}
{[%emt 00:02:26]} c5 {[%clk 01:28:10]} {[%emt 00:04:12]} 8. dxc5 {[%clk
01:25:46]} {[%emt 00:04:55]} Bxc5 {[%clk 01:28:30]} {[%emt 00:00:09]} 9. cxd5
{[%clk 01:26:14]} {[%emt 00:00:03]} exd5 {[%clk 01:28:41]} {[%emt 00:00:17]} 10.
Bd3 {[%clk 01:26:41]} {[%emt 00:00:05]} a6 {[%clk 01:19:18]} {[%emt 00:09:52]}
11. O-O {[%clk 01:26:00]} {[%emt 00:01:11]} Nc6 {[%clk 01:18:47]} {[%emt
00:01:01]} 12. b4 {[%clk 01:19:13]} {[%emt 00:07:18]} Ba7 {[%clk 01:17:51]}
{[%emt 00:01:26]} 13. Bb2 {[%clk 01:19:33]} {[%emt 00:00:10]} Bg4 {[%clk
01:10:23]} {[%emt 00:07:58]} 14. Nce2 {[%clk 01:18:28]} {[%emt 00:01:34]} Ne4
{[%clk 00:43:12]} {[%emt 00:27:41]} 15. f3 {[%clk 00:47:07]} {[%emt 00:31:52]}
Nxg3 {[%clk 00:37:05]} {[%emt 00:06:36]} 16. Nxg3 {[%clk 00:47:25]} {[%emt
00:00:13]} Be6 {[%clk 00:37:23]} {[%emt 00:00:10]} 17. Kh1 {[%clk 00:44:48]}
{[%emt 00:03:06]} Qh4 {[%clk 00:35:41]} {[%emt 00:02:13]} 18. Qe1 {[%clk
00:29:38]} {[%emt 00:15:41]} Rfe8 {[%clk 00:29:57]} {[%emt 00:06:14]} 19. e4
{[%clk 00:18:28]} {[%emt 00:11:41]} dxe4 {[%clk 00:20:59]} {[%emt 00:09:26]} 20.
Qxe4 {[%clk 00:18:51]} {[%emt 00:00:09]} Qxe4 {[%clk 00:17:30]} {[%emt
00:03:57]} 21. Bxe4 {[%clk 00:19:12]} {[%emt 00:00:10]} g6 {[%clk 00:15:21]}
{[%emt 00:02:38]} 22. Rfd1 {[%clk 00:16:28]} {[%emt 00:03:15]} h5 {[%clk
00:09:11]} {[%emt 00:06:38]} 23. Bf6 {[%clk 00:06:04]} {[%emt 00:10:55]} Rac8
{[%clk 00:07:21]} {[%emt 00:02:21]} 24. Ne2 {[%clk 00:04:56]} {[%emt 00:01:38]}
Bc4 {[%clk 00:06:49]} {[%emt 00:01:03]} 25. Nf4 {[%clk 00:04:40]} {[%emt
00:00:46]} Bb8 {[%clk 00:06:38]} {[%emt 00:00:40]} 26. Nd5 {[%clk 00:04:36]}
{[%emt 00:00:34]} Bb3 {[%clk 00:03:51]} {[%emt 00:03:17]} 27. Rd2 {[%clk
00:03:31]} {[%emt 00:01:35]} Be5 {[%clk 00:03:23]} {[%emt 00:00:59]} 28. Bxe5
{[%clk 00:02:49]} {[%emt 00:01:12]} Rxe5 {[%clk 00:03:44]} {[%emt 00:00:08]} 29.
Nf6+ {[%clk 00:01:30]} {[%emt 00:01:49]} Kg7 {[%clk 00:03:59]} {[%emt
00:00:15]} 30. Nd7 {[%clk 00:01:39]} {[%emt 00:00:22]} Re7 {[%clk 00:03:40]}
{[%emt 00:00:47]} 31. Nc5 {[%clk 00:02:01]} {[%emt 00:00:08]} Bc4 {[%clk
00:02:30]} {[%emt 00:01:40]} 32. Rc1 {[%clk 00:01:49]} {[%emt 00:00:42]} b5
{[%clk 00:01:02]} {[%emt 00:01:59]} 33. Nxa6 {[%clk 00:01:05]} {[%emt
00:01:13]} Ra7 {[%clk 00:01:24]} {[%emt 00:00:08]} 34. Nc5 {[%clk 00:01:05]}
{[%emt 00:00:31]} Rxa3 {[%clk 00:01:48]} {[%emt 00:00:06]} 1/2-1/2

[Event "Schack-SM 2024: Mastarklassen"]
[Site "Fortnox Arena, Hejaregatan 5, Vaxjo, Sweden"]
[Date "2024.06.30"]
[Round "2.3"]
[White "Malm, Simon 1995"]
[Black "Sundin, Emanuel"]
[Result "1/2-1/2"]
[TimeControl "90 minutes for 40 moves + 30 minutes for the rest of the game + 30 seconds per move from move one."]
[WhiteElo "1948"]
[BlackElo "2165"]

1. d4 {[%clk 01:30:57]} {[%emt 00:00:03]} d5 {[%clk 01:30:32]} {[%emt
00:00:29]} 2. c4 {[%clk 01:31:19]} {[%emt 00:00:07]} e6 {[%clk 01:30:54]}
{[%emt 00:00:09]} 3. Nc3 {[%clk 01:31:25]} {[%emt 00:00:23]} c6 {[%clk
01:31:08]} {[%emt 00:00:16]} 4. e3 {[%clk 01:31:04]} {[%emt 00:00:52]} f5
{[%clk 01:30:20]} {[%emt 00:01:18]} 5. Nf3 {[%clk 01:28:59]} {[%emt 00:02:35]}
Nf6 {[%clk 01:29:26]} {[%emt 00:01:23]} 6. Bd3 {[%clk 01:25:38]} {[%emt
00:03:52]} Bd6 {[%clk 01:28:26]} {[%emt 00:01:28]} 7. O-O {[%clk 01:25:33]}
{[%emt 00:00:36]} O-O {[%clk 01:28:38]} {[%emt 00:00:18]} 8. b3 {[%clk
01:20:10]} {[%emt 00:05:54]} Ne4 {[%clk 01:25:20]} {[%emt 00:03:48]} 9. Bb2
{[%clk 01:19:12]} {[%emt 00:01:29]} Nd7 {[%clk 01:20:17]} {[%emt 00:05:31]} 10.
Qe2 {[%clk 01:12:33]} {[%emt 00:07:10]} b6 {[%clk 01:17:34]} {[%emt 00:03:13]}
11. Rfd1 {[%clk 01:10:32]} {[%emt 00:02:31]} Bb7 {[%clk 01:16:50]} {[%emt
00:01:14]} 12. cxd5 {[%clk 01:07:34]} {[%emt 00:03:28]} exd5 {[%clk 01:14:00]}
{[%emt 00:03:21]} 13. Rac1 {[%clk 01:02:22]} {[%emt 00:05:42]} Rc8 {[%clk
01:05:09]} {[%emt 00:09:20]} 14. Ba6 {[%clk 00:57:36]} {[%emt 00:05:17]} Bxa6
{[%clk 00:58:11]} {[%emt 00:07:28]} 15. Qxa6 {[%clk 00:58:03]} {[%emt
00:00:03]} Bb8 {[%clk 00:34:04]} {[%emt 00:24:37]} 16. b4 {[%clk 00:47:37]}
{[%emt 00:10:56]} f4 {[%clk 00:24:20]} {[%emt 00:10:14]} 17. Nxe4 {[%clk
00:39:42]} {[%emt 00:08:25]} dxe4 {[%clk 00:24:23]} {[%emt 00:00:27]} 18. Qc4+
{[%clk 00:40:00]} {[%emt 00:00:13]} Kh8 {[%clk 00:24:17]} {[%emt 00:00:36]} 19.
Ne5 {[%clk 00:39:47]} {[%emt 00:00:43]} Qe7 {[%clk 00:15:26]} {[%emt 00:09:21]}
20. exf4 {[%clk 00:35:05]} {[%emt 00:05:12]} Rxf4 {[%clk 00:14:45]} {[%emt
00:01:10]} 21. g3 {[%clk 00:34:37]} {[%emt 00:00:58]} Rf6 {[%clk 00:13:35]}
{[%emt 00:01:41]} 22. Nxd7 {[%clk 00:31:47]} {[%emt 00:03:20]} Qxd7 {[%clk
00:13:41]} {[%emt 00:00:24]} 23. d5 {[%clk 00:31:34]} {[%emt 00:00:44]} Rd6
{[%clk 00:08:27]} {[%emt 00:05:43]} 24. Be5 {[%clk 00:30:12]} {[%emt 00:01:51]}
e3 {[%clk 00:06:28]} {[%emt 00:02:30]} 25. fxe3 {[%clk 00:27:39]} {[%emt
00:03:04]} b5 {[%clk 00:01:32]} {[%emt 00:05:26]} 26. Qf4 {[%clk 00:21:35]}
{[%emt 00:06:35]} Rf6 {[%clk 00:01:24]} {[%emt 00:00:36]} 27. Qd4 {[%clk
00:16:40]} {[%emt 00:05:26]} Bxe5 {[%clk 00:01:04]} {[%emt 00:00:49]} 28. Qxe5
{[%clk 00:17:09]} {[%emt 00:00:01]} Rd6 {[%clk 00:00:32]} {[%emt 00:01:01]} 29.
Rd4 {[%clk 00:11:46]} {[%emt 00:05:53]} Rh6 {[%clk 00:00:31]} {[%emt 00:00:32]}
30. dxc6 {[%clk 00:07:19]} {[%emt 00:04:57]} Qh3 {[%clk 00:00:38]} {[%emt
00:00:23]} 31. Rd2 {[%clk 00:05:38]} {[%emt 00:02:11]} Re6 {[%clk 00:00:45]}
{[%emt 00:00:23]} 32. Qd4 {[%clk 00:05:10]} {[%emt 00:00:57]} Rf6 {[%clk
00:00:32]} {[%emt 00:00:44]} 33. Qxa7 {[%clk 00:04:05]} {[%emt 00:01:34]} h5
{[%clk 00:01:01]} {[%emt 00:00:02]} 34. Qd7 {[%clk 00:02:59]} {[%emt 00:01:36]}
Qxd7 {[%clk 00:00:33]} {[%emt 00:00:59]} 35. Rxd7 {[%clk 00:03:27]} {[%emt
00:00:02]} Rcxc6 {[%clk 00:00:40]} {[%emt 00:00:22]} 36. Rxc6 {[%clk 00:03:47]}
{[%emt 00:00:09]} Rxc6 {[%clk 00:01:09]} {[%emt 00:00:01]} 37. Rd5 {[%clk
00:04:07]} {[%emt 00:00:09]} g6 {[%clk 00:01:02]} {[%emt 00:00:38]} 38. Rxb5
{[%clk 00:04:29]} {[%emt 00:00:07]} Rc1+ {[%clk 00:01:28]} {[%emt 00:00:04]} 39.
Kg2 {[%clk 00:04:44]} {[%emt 00:00:15]} Rc2+ {[%clk 00:01:57]} {[%emt
00:00:02]} 40. Kf3 {[%clk 00:04:05]} {[%emt 00:01:09]} Rxa2 {[%clk 00:02:19]}
{[%emt 00:00:09]} 41. h4 {[%clk 00:04:00]} {[%emt 00:00:34]} Kg7 {[%clk
00:02:42]} {[%emt 00:00:09]} 42. Ke4 {[%clk 00:03:36]} {[%emt 00:00:52]} Rb2
{[%clk 00:02:41]} {[%emt 00:00:31]} 43. Kd4 {[%clk 00:02:48]} {[%emt 00:01:19]}
Kf6 {[%clk 00:02:43]} {[%emt 00:00:26]} 44. e4 {[%clk 00:03:03]} {[%emt
00:00:16]} Rb3 {[%clk 00:02:24]} {[%emt 00:00:49]} 45. Rb6+ {[%clk 00:28:36]}
{[%emt 00:04:56]} Kg7 {[%clk 00:28:51]} {[%emt 00:04:03]} 46. b5 {[%clk
00:26:45]} {[%emt 00:02:22]} Rxg3 {[%clk 00:29:13]} {[%emt 00:00:06]} 47. Rc6
{[%clk 00:24:56]} {[%emt 00:02:20]} g5 {[%clk 00:26:39]} {[%emt 00:03:04]} 48.
Rc5 {[%clk 00:18:29]} {[%emt 00:06:58]} gxh4 {[%clk 00:26:24]} {[%emt
00:00:45]} 49. Rxh5 {[%clk 00:18:46]} {[%emt 00:00:13]} h3 {[%clk 00:26:37]}
{[%emt 00:00:16]} 50. b6 {[%clk 00:18:57]} {[%emt 00:00:19]} Rb3 {[%clk
00:18:44]} {[%emt 00:08:23]} 51. Kc5 {[%clk 00:18:28]} {[%emt 00:00:58]} Kg6
{[%clk 00:18:59]} {[%emt 00:00:16]} 52. Rh8 {[%clk 00:17:45]} {[%emt 00:01:14]}
Kg7 {[%clk 00:18:52]} {[%emt 00:00:37]} 53. Rh4 {[%clk 00:17:15]} {[%emt
00:00:59]} Kf6 {[%clk 00:18:55]} {[%emt 00:00:27]} 54. Kc6 {[%clk 00:14:23]}
{[%emt 00:03:23]} Rc3+ {[%clk 00:18:00]} {[%emt 00:01:24]} 55. Kd6 {[%clk
00:12:53]} {[%emt 00:01:58]} Rd3+ {[%clk 00:17:26]} {[%emt 00:01:04]} 56. Kc7
{[%clk 00:13:13]} {[%emt 00:00:11]} Rc3+ {[%clk 00:17:44]} {[%emt 00:00:12]} 57.
Kb8 {[%clk 00:13:17]} {[%emt 00:00:26]} Ke5 {[%clk 00:17:40]} {[%emt 00:00:34]}
58. b7 {[%clk 00:13:09]} {[%emt 00:00:38]} Rb3 {[%clk 00:12:37]} {[%emt
00:05:33]} 59. Rh7 {[%clk 00:07:48]} {[%emt 00:05:52]} Kxe4 {[%clk 00:11:30]}
{[%emt 00:01:37]} 60. Kc8 {[%clk 00:07:10]} {[%emt 00:01:07]} Kf4 {[%clk
00:11:00]} {[%emt 00:01:00]} 61. Rxh3 {[%clk 00:05:52]} {[%emt 00:01:48]} Rxh3
{[%clk 00:09:05]} {[%emt 00:02:26]} 62. b8=Q+ {[%clk 00:06:14]} {[%emt
00:00:09]} Kg4 {[%clk 00:09:10]} {[%emt 00:00:24]} 63. Kd7 {[%clk 00:06:09]}
{[%emt 00:00:35]} Rf3 {[%clk 00:08:48]} {[%emt 00:00:51]} 64. Qg8+ {[%clk
00:06:22]} {[%emt 00:00:17]} Kh4 {[%clk 00:08:40]} {[%emt 00:00:38]} 65. Ke6
{[%clk 00:06:33]} {[%emt 00:00:18]} Rg3 {[%clk 00:07:49]} {[%emt 00:01:21]} 66.
Qh7+ {[%clk 00:06:25]} {[%emt 00:00:38]} Kg4 {[%clk 00:07:59]} {[%emt
00:00:21]} 67. Qf5+ {[%clk 00:06:05]} {[%emt 00:00:50]} Kh4 {[%clk 00:08:21]}
{[%emt 00:00:07]} 68. Kf6 {[%clk 00:05:10]} {[%emt 00:01:24]} Rf3 {[%clk
00:08:08]} {[%emt 00:00:43]} 69. Qxf3 {[%clk 00:04:25]} {[%emt 00:00:44]}
1/2-1/2

[ePGN "0.1;DGT LiveChess/2.2.6"]

[Event "Schack-SM 2024: Mastarklassen"]
[Site "Fortnox Arena, Hejaregatan 5, Vaxjo, Sweden"]
[Date "2024.06.29"]
[Round "1.1"]
[White "Tuomainen, Felix"]
[Black "Mashhadi, Peyman"]
[Result "1/2-1/2"]
[TimeControl "90 minutes for 40 moves + 30 minutes for the rest of the game + 30 seconds per move from move one."]
[WhiteTitle "FM"]
[WhiteElo "2255"]
[BlackElo "2116"]

1. d4 {[%clk 01:30:58]} {[%emt 00:00:03]} g6 {[%clk 01:30:40]} {[%emt
00:00:20]} 2. e4 {[%clk 01:30:57]} {[%emt 00:00:31]} d6 {[%clk 01:30:56]}
{[%emt 00:00:14]} 3. Nf3 {[%clk 01:31:11]} {[%emt 00:00:17]} Nf6 {[%clk
01:30:57]} {[%emt 00:00:27]} 4. Nbd2 {[%clk 01:30:17]} {[%emt 00:01:25]} Bg7
{[%clk 01:30:37]} {[%emt 00:00:49]} 5. Bc4 {[%clk 01:28:05]} {[%emt 00:02:44]}
O-O {[%clk 01:28:51]} {[%emt 00:02:16]} 6. Qe2 {[%clk 01:28:23]} {[%emt
00:00:12]} Nc6 {[%clk 01:20:14]} {[%emt 00:09:06]} 7. h3 {[%clk 01:23:26]}
{[%emt 00:05:27]} d5 {[%clk 01:14:12]} {[%emt 00:06:32]} 8. exd5 {[%clk
01:18:39]} {[%emt 00:05:17]} Nxd5 {[%clk 01:13:30]} {[%emt 00:01:11]} 9. Nb3
{[%clk 01:15:43]} {[%emt 00:03:27]} Nb6 {[%clk 01:00:07]} {[%emt 00:13:54]} 10.
Be3 {[%clk 01:13:11]} {[%emt 00:03:03]} Nxc4 {[%clk 00:58:52]} {[%emt
00:01:44]} 11. Qxc4 {[%clk 01:13:15]} {[%emt 00:00:27]} Qd6 {[%clk 00:53:56]}
{[%emt 00:05:24]} 12. O-O {[%clk 01:03:28]} {[%emt 00:10:18]} Qb4 {[%clk
00:49:23]} {[%emt 00:05:03]} 13. Qe2 {[%clk 01:00:31]} {[%emt 00:03:24]} Bf5
{[%clk 00:41:04]} {[%emt 00:08:50]} 14. d5 {[%clk 00:51:30]} {[%emt 00:09:33]}
Na5 {[%clk 00:39:09]} {[%emt 00:02:26]} 15. Nxa5 {[%clk 00:46:42]} {[%emt
00:05:18]} Qxa5 {[%clk 00:39:26]} {[%emt 00:00:12]} 16. c4 {[%clk 00:46:25]}
{[%emt 00:00:47]} Rfe8 {[%clk 00:29:34]} {[%emt 00:10:21]} 17. Nd4 {[%clk
00:44:39]} {[%emt 00:02:17]} Bc8 {[%clk 00:25:48]} {[%emt 00:04:17]} 18. Rab1
{[%clk 00:37:40]} {[%emt 00:07:29]} c6 {[%clk 00:20:51]} {[%emt 00:05:26]} 19.
dxc6 {[%clk 00:36:51]} {[%emt 00:01:20]} bxc6 {[%clk 00:20:46]} {[%emt
00:00:35]} 20. Nxc6 {[%clk 00:32:30]} {[%emt 00:04:52]} Qc7 {[%clk 00:17:14]}
{[%emt 00:04:01]} 21. Nb4 {[%clk 00:32:00]} {[%emt 00:00:57]} e6 {[%clk
00:16:54]} {[%emt 00:00:53]} 22. Rfd1 {[%clk 00:27:43]} {[%emt 00:04:46]} Rb8
{[%clk 00:16:16]} {[%emt 00:01:08]} 23. Nc2 {[%clk 00:25:52]} {[%emt 00:02:20]}
Rxb2 {[%clk 00:14:17]} {[%emt 00:02:31]} 24. Rxb2 {[%clk 00:26:02]} {[%emt
00:00:20]} Bxb2 {[%clk 00:14:40]} {[%emt 00:00:06]} 25. Nd4 {[%clk 00:26:10]}
{[%emt 00:00:22]} Bxd4 {[%clk 00:14:19]} {[%emt 00:00:52]} 26. Bxd4 {[%clk
00:25:27]} {[%emt 00:01:13]} Ba6 {[%clk 00:11:52]} {[%emt 00:02:58]} 27. Be5
{[%clk 00:23:11]} {[%emt 00:02:46]} Qxc4 {[%clk 00:08:54]} {[%emt 00:03:29]} 28.
Qb2 {[%clk 00:22:58]} {[%emt 00:00:39]} Qe2 {[%clk 00:07:54]} {[%emt 00:01:35]}
29. Qa1 {[%clk 00:23:03]} {[%emt 00:00:23]} Bb7 {[%clk 00:06:45]} {[%emt
00:01:40]} 30. Re1 {[%clk 00:20:34]} {[%emt 00:03:01]} Qb5 {[%clk 00:05:13]}
{[%emt 00:02:01]} 31. f3 {[%clk 00:16:20]} {[%emt 00:04:44]} h6 {[%clk
00:04:18]} {[%emt 00:01:24]} 32. Qc1 {[%clk 00:16:04]} {[%emt 00:00:45]} Kh7
{[%clk 00:04:14]} {[%emt 00:00:36]} 33. Qf4 {[%clk 00:14:48]} {[%emt 00:01:43]}
f5 {[%clk 00:03:40]} {[%emt 00:01:06]} 34. Rc1 {[%clk 00:14:01]} {[%emt
00:01:16]} Re7 {[%clk 00:03:48]} {[%emt 00:00:22]} 35. Bf6 {[%clk 00:13:36]}
{[%emt 00:00:51]} e5 {[%clk 00:03:21]} {[%emt 00:01:02]} 36. Qe3 {[%clk
00:12:24]} {[%emt 00:01:39]} Rd7 {[%clk 00:01:48]} {[%emt 00:02:06]} 37. Kh1
{[%clk 00:10:54]} {[%emt 00:01:59]} g5 {[%clk 00:01:08]} {[%emt 00:01:11]} 38.
Qa3 {[%clk 00:09:36]} {[%emt 00:01:45]} Kg6 {[%clk 00:00:47]} {[%emt 00:00:54]}
39. Bh8 {[%clk 00:07:54]} {[%emt 00:02:13]} Qd5 {[%clk 00:00:39]} {[%emt
00:00:37]} 40. Qf8 {[%clk 00:06:58]} {[%emt 00:01:23]} Qe6 {[%clk 00:00:40]}
{[%emt 00:00:31]} 41. Rc5 {[%clk 00:28:18]} {[%emt 00:09:05]} Qf7 {[%clk
00:26:18]} {[%emt 00:04:57]} 42. Qxf7+ {[%clk 00:26:15]} {[%emt 00:02:34]} Kxf7
{[%clk 00:26:22]} {[%emt 00:00:25]} 43. Bxe5 {[%clk 00:26:36]} {[%emt
00:00:10]} Ke6 {[%clk 00:26:02]} {[%emt 00:00:49]} 44. Ra5 {[%clk 00:20:44]}
{[%emt 00:06:22]} Rd1+ {[%clk 00:23:03]} {[%emt 00:03:29]} 45. Kh2 {[%clk
00:21:12]} {[%emt 00:00:02]} Rd2 {[%clk 00:22:24]} {[%emt 00:01:10]} 46. Kg1
{[%clk 00:21:16]} {[%emt 00:00:24]} a6 {[%clk 00:20:26]} {[%emt 00:02:30]} 47.
Bc3 {[%clk 00:21:04]} {[%emt 00:00:40]} Rc2 {[%clk 00:19:45]} {[%emt 00:01:13]}
48. Bg7 {[%clk 00:21:14]} {[%emt 00:00:18]} h5 {[%clk 00:19:09]} {[%emt
00:01:07]} 49. Bd4 {[%clk 00:20:31]} {[%emt 00:01:10]} Rc4 {[%clk 00:17:35]}
{[%emt 00:02:09]} 50. Bh8 {[%clk 00:18:59]} {[%emt 00:01:58]} Rc8 {[%clk
00:16:46]} {[%emt 00:01:21]} 51. Bd4 {[%clk 00:18:57]} {[%emt 00:00:31]} Rc4
{[%clk 00:17:12]} {[%emt 00:00:06]} 52. Bh8 {[%clk 00:19:11]} {[%emt 00:00:15]}
Rc8 {[%clk 00:17:39]} {[%emt 00:00:04]} 1/2-1/2

[Event "Schack-SM 2024: Mastarklassen"]
[Site "Fortnox Arena, Hejaregatan 5, Vaxjo, Sweden"]
[Date "2024.06.29"]
[Round "1.3"]
[White "Willstedt, Lukas"]
[Black "Mardell, Jimmy"]
[Result "0-1"]
[TimeControl "90 minutes for 40 moves + 30 minutes for the rest of the game + 30 seconds per move from move one."]
[WhiteElo "2082"]
[BlackElo "2186"]

1. d4 {[%clk 01:30:52]} {[%emt 00:00:08]} d5 {[%clk 01:30:52]} {[%emt
00:00:09]} 2. Nf3 {[%clk 01:31:17]} {[%emt 00:00:05]} Nf6 {[%clk 01:31:04]}
{[%emt 00:00:18]} 3. c4 {[%clk 01:31:40]} {[%emt 00:00:06]} c6 {[%clk
01:31:11]} {[%emt 00:00:24]} 4. g3 {[%clk 01:32:04]} {[%emt 00:00:05]} Bf5
{[%clk 01:30:31]} {[%emt 00:01:10]} 5. Qb3 {[%clk 01:32:00]} {[%emt 00:00:35]}
Qc8 {[%clk 01:28:29]} {[%emt 00:02:32]} 6. Nc3 {[%clk 01:30:28]} {[%emt
00:02:02]} e6 {[%clk 01:26:55]} {[%emt 00:02:04]} 7. Bg2 {[%clk 01:29:52]}
{[%emt 00:01:06]} Be7 {[%clk 01:26:16]} {[%emt 00:01:08]} 8. O-O {[%clk
01:29:51]} {[%emt 00:00:31]} h6 {[%clk 01:21:35]} {[%emt 00:05:12]} 9. Nd2
{[%clk 01:25:36]} {[%emt 00:04:44]} O-O {[%clk 01:18:39]} {[%emt 00:03:27]} 10.
e4 {[%clk 01:22:49]} {[%emt 00:03:15]} dxe4 {[%clk 01:18:52]} {[%emt 00:00:17]}
11. Ndxe4 {[%clk 01:22:15]} {[%emt 00:01:04]} Nxe4 {[%clk 01:14:03]} {[%emt
00:05:19]} 12. Nxe4 {[%clk 01:22:14]} {[%emt 00:00:31]} Rd8 {[%clk 01:13:50]}
{[%emt 00:00:43]} 13. Be3 {[%clk 01:09:03]} {[%emt 00:13:41]} a5 {[%clk
01:07:56]} {[%emt 00:06:24]} 14. Nc3 {[%clk 01:06:15]} {[%emt 00:03:18]} Nd7
{[%clk 01:00:47]} {[%emt 00:07:37]} 15. Na4 {[%clk 01:00:11]} {[%emt 00:06:36]}
Ra6 {[%clk 00:56:23]} {[%emt 00:04:53]} 16. Rac1 {[%clk 00:50:40]} {[%emt
00:10:01]} Qb8 {[%clk 00:53:49]} {[%emt 00:03:06]} 17. Bf4 {[%clk 00:46:51]}
{[%emt 00:04:18]} Qa7 {[%clk 00:39:17]} {[%emt 00:15:02]} 18. Rfd1 {[%clk
00:40:17]} {[%emt 00:07:04]} Bg4 {[%clk 00:27:36]} {[%emt 00:12:11]} 19. f3
{[%clk 00:38:30]} {[%emt 00:02:18]} e5 {[%clk 00:26:07]} {[%emt 00:01:58]} 20.
fxg4 {[%clk 00:32:04]} {[%emt 00:06:56]} exf4 {[%clk 00:26:32]} {[%emt
00:00:06]} 21. gxf4 {[%clk 00:32:18]} {[%emt 00:00:16]} Nf6 {[%clk 00:21:43]}
{[%emt 00:05:18]} 22. c5 {[%clk 00:32:23]} {[%emt 00:00:25]} Qb8 {[%clk
00:21:33]} {[%emt 00:00:41]} 23. Qg3 {[%clk 00:31:17]} {[%emt 00:01:34]} Nd5
{[%clk 00:16:27]} {[%emt 00:05:37]} 24. Bxd5 {[%clk 00:30:12]} {[%emt
00:01:36]} Rxd5 {[%clk 00:16:51]} {[%emt 00:00:05]} 25. Nb6 {[%clk 00:30:32]}
{[%emt 00:00:11]} Rd8 {[%clk 00:14:39]} {[%emt 00:02:41]} 26. Qf2 {[%clk
00:25:51]} {[%emt 00:05:11]} Bf6 {[%clk 00:14:00]} {[%emt 00:01:10]} 27. Rc4
{[%clk 00:23:45]} {[%emt 00:02:37]} Qc7 {[%clk 00:12:37]} {[%emt 00:01:52]} 28.
Re1 {[%clk 00:20:11]} {[%emt 00:04:05]} a4 {[%clk 00:08:48]} {[%emt 00:04:19]}
29. h3 {[%clk 00:15:49]} {[%emt 00:04:51]} Ra5 {[%clk 00:07:12]} {[%emt
00:02:06]} 30. Nxa4 {[%clk 00:12:51]} {[%emt 00:03:28]} Raa8 {[%clk 00:07:29]}
{[%emt 00:00:13]} 31. b3 {[%clk 00:11:19]} {[%emt 00:02:02]} Re8 {[%clk
00:06:57]} {[%emt 00:01:01]} 32. Rxe8+ {[%clk 00:09:53]} {[%emt 00:01:57]} Rxe8
{[%clk 00:07:21]} {[%emt 00:00:05]} 33. Nc3 {[%clk 00:09:35]} {[%emt 00:00:48]}
Qe7 {[%clk 00:05:20]} {[%emt 00:02:31]} 34. Kg2 {[%clk 00:07:26]} {[%emt
00:02:39]} Bh4 {[%clk 00:05:27]} {[%emt 00:00:23]} 35. Qd2 {[%clk 00:06:05]}
{[%emt 00:01:50]} Be1 {[%clk 00:05:35]} {[%emt 00:00:23]} 36. Qc2 {[%clk
00:05:21]} {[%emt 00:01:13]} Qe3 {[%clk 00:04:29]} {[%emt 00:01:36]} 37. Nd1
{[%emt 00:03:03]} Qg3+ {[%clk 00:03:43]} 38. Kf1 {[%clk 00:04:00]} {[%emt
00:00:33]} Qxh3+ {[%clk 00:03:58]} {[%emt 00:00:16]} 39. Kg1 {[%clk 00:04:12]}
{[%emt 00:00:18]} Qxg4+ {[%clk 00:04:08]} {[%emt 00:00:21]} 40. Kf1 {[%clk
00:04:35]} {[%emt 00:00:06]} Qh3+ {[%clk 00:03:32]} {[%emt 00:01:07]} 41. Kg1
{[%clk 00:04:53]} {[%emt 00:00:10]} Bh4 {[%clk 00:01:46]} {[%emt 00:02:17]} 42.
Nf2 {[%clk 00:03:10]} {[%emt 00:02:13]} Re1# {[%clk 00:01:39]} 0-1